fUST/lending_fUST_20260603
["ID","MTS","AMOUNT","RATE_DAILY","PERIOD"]
[423811660,1780431055000,-604.75,0.00016712,2]
[423811662,1780431055000,-1127.13,0.00016712,2]
[423811672,1780431055000,-189.46,0.00016712,2]
[423811663,1780431055000,-1003.95,0.00016712,2]
[423811667,1780431055000,-500.0,0.00016712,2]
[423811661,1780431055000,-500.0,0.00016712,2]
[423811682,1780431055000,-562.5,0.00016986,2]
[423811664,1780431055000,-542.13,0.00016712,2]
[423811668,1780431055000,-522.99,0.00016712,2]
[423811666,1780431055000,-500.0,0.00016712,2]
[423811671,1780431055000,-500.0,0.00016712,2]
[423811670,1780431055000,-648.3,0.00016712,2]
[423811665,1780431055000,-551.38,0.00016712,2]
[423811674,1780431055000,-12306.8,0.00016712,2]
[423811683,1780431055000,-500.0,0.00016986,2]
[423811685,1780431055000,-500.0,0.00016986,2]
[423811684,1780431055000,-500.0,0.00016986,2]
[423811673,1780431055000,-500.0,0.00016712,2]
[423811681,1780431055000,-500.0,0.00016986,2]
[423811678,1780431055000,-504.67,0.00016986,2]
[423811669,1780431055000,-500.0,0.00016712,2]
[423811705,1780431055000,-551.38,0.00016986,2]
[423811713,1780431055000,-12306.8,0.00016986,2]
[423811712,1780431055000,-500.0,0.00016986,2]
[423811740,1780431055000,-274.94,0.0001726,2]
[423811744,1780431055000,-500.0,0.0001726,2]
[423811745,1780431055000,-500.0,0.0001726,2]
[423811743,1780431055000,-1051.96,0.0001726,2]
[423811752,1780431055000,-604.75,0.0001726,2]
[423811747,1780431055000,-549.68,0.0001726,2]
[423811749,1780431055000,-540.2,0.0001726,2]
[423811746,1780431055000,-500.0,0.0001726,2]
[423811748,1780431055000,-1585.15,0.0001726,2]
[423811754,1780431055000,-1127.13,0.0001726,2]
[423811753,1780431055000,-500.0,0.0001726,2]
[423811765,1780431055000,-7433.48225704,0.0001726,2]
[423811762,1780431055000,-648.3,0.0001726,2]
[423811756,1780431055000,-542.13,0.0001726,2]
[423811704,1780431055000,-542.13,0.00016986,2]
[423811759,1780431055000,-500.0,0.0001726,2]
[423811757,1780431055000,-551.38,0.0001726,2]
[423811755,1780431055000,-1003.95,0.0001726,2]
[423811764,1780431055000,-500.0,0.0001726,2]
[423811761,1780431055000,-500.0,0.0001726,2]
[423811758,1780431055000,-500.0,0.0001726,2]
[423811760,1780431055000,-522.99,0.0001726,2]
[423811767,1780431055000,-500.0,0.00013972,2]
[423811766,1780431055000,-837.82014782,0.0001726,2]
[423811768,1780431055000,-768.88875421,0.0001726,2]
[423811751,1780431055000,-500.0,0.0001726,2]
[423811742,1780431055000,-677.89,0.0001726,2]
[423811763,1780431055000,-500.0,0.0001726,2]
[423811750,1780431055000,-500.0,0.0001726,2]
[423811714,1780431055000,-947.24,0.00016986,2]
[423811723,1780431055000,-398.02146615,0.00017028,2]
[423811715,1780431055000,-1200.27,0.00016986,2]
[423811724,1780431055000,-245.43384485,0.00017028,2]
[423811716,1780431055000,-167.69559554,0.00017015,3]
[423811719,1780431055000,-186.9182265,0.00017025,2]
[423811717,1780431055000,-303.14404979,0.00017019,2]
[423811721,1780431055000,-327.34223012,0.00017028,2]
[423811722,1780431055000,-377.77546667,0.00017028,2]
[423811720,1780431055000,-302.3264064,0.00017027,2]
[423811718,1780431055000,-345.43128843,0.00017019,2]
[423811727,1780431055000,-220.2861218,0.00017042,2]
[423811726,1780431055000,-300.99183119,0.00017028,2]
[423811730,1780431055000,-249.50950487,0.00017042,2]
[423811739,1780431055000,-500.0,0.0001726,2]
[423811732,1780431055000,-168.3888056,0.00017167,2]
[423811733,1780431055000,-503.92,0.0001726,2]
[423811729,1780431055000,-165.60256764,0.00017042,2]
[423811735,1780431055000,-500.0,0.0001726,2]
[423811728,1780431055000,-209.56441595,0.00017042,2]
[423811734,1780431055000,-500.0,0.0001726,2]
[423811738,1780431055000,-500.0,0.0001726,2]
[423811725,1780431055000,-208.43643438,0.00017028,2]
[423811737,1780431055000,-500.0,0.0001726,2]
[423811731,1780431055000,-343.42918539,0.0001706,2]
[423811736,1780431055000,-562.5,0.0001726,2]
[423811741,1780431055000,-500.0,0.0001726,2]
[423811769,1780431056000,-483.57586156,0.00011481,2]
[423812102,1780431120000,151.0,0.00023421,30]
[423812841,1780431540000,151.0,0.00023346,30]
[423812867,1780431735000,5000.0,0.00023346,30]
[423812874,1780431778000,5000.0,0.00023346,30]
[423813074,1780432063000,-5000.0,9.968e-05,2]
[423813075,1780432110000,-2000.0,9.968e-05,2]
[423813144,1780432232000,-500.0,0.00012042,2]
[423813143,1780432232000,-500.0,0.00012042,2]
[423813145,1780432232000,-506.66849424,0.00012042,2]
[423813139,1780432232000,-500.0,0.00012042,2]
[423813137,1780432232000,-500.0,0.00012042,2]
[423813136,1780432232000,-500.0,0.00012042,2]
[423813138,1780432232000,-500.0,0.00012042,2]
[423813134,1780432232000,-500.0,0.00012042,2]
[423813133,1780432232000,-500.0,0.00012042,2]
[423813124,1780432232000,-300.0,0.0001153,2]
[423813123,1780432232000,-300.0,0.0001153,2]
[423813132,1780432232000,-532.72182746,0.00012042,2]
[423813121,1780432232000,-300.0,0.0001153,2]
[423813129,1780432232000,-307.15538368,0.00011992,2]
[423813120,1780432232000,-1200.0,0.00011529,2]
[423813128,1780432232000,-605.22975432,0.00011992,2]
[423813118,1780432232000,-200.0,0.0001139,2]
[423813126,1780432232000,-603.41461817,0.00011943,2]
[423813125,1780432232000,-1200.0,0.00011531,2]
[423813127,1780432232000,-74.22387866,0.00011943,2]
[423813131,1780432232000,-183.0,0.00012019,2]
[423813116,1780432232000,-16.87700188,0.0001017,2]
[423813112,1780432232000,-134.12299812,0.0001017,2]
[423813109,1780432232000,-321.81384203,9.968e-05,2]
[423813107,1780432232000,-5000.0,9.868e-05,2]
[423813140,1780432232000,-318.79840182,0.00012042,2]
[423813130,1780432232000,-151.06,0.00012,2]
[423813141,1780432232000,-500.0,0.00012042,2]
[423813135,1780432232000,-500.0,0.00012042,2]
[423813146,1780432232000,-500.0,0.00012042,2]
[423813142,1780432232000,-500.0,0.00012042,2]
[423813173,1780432232000,-1050.0,0.00012043,2]
[423813164,1780432232000,-1050.0,0.00012043,2]
[423813163,1780432232000,-500.0,0.00012043,2]
[423813161,1780432232000,-500.0,0.00012043,2]
[423813168,1780432232000,-1050.0,0.00012043,2]
[423813162,1780432232000,-500.0,0.00012043,2]
[423813159,1780432232000,-256.61855261,0.00012042,2]
[423813170,1780432232000,-1050.0,0.00012043,2]
[423813171,1780432232000,-1050.0,0.00012043,2]
[423813169,1780432232000,-1050.0,0.00012043,2]
[423813167,1780432232000,-1050.0,0.00012043,2]
[423813166,1780432232000,-1050.0,0.00012043,2]
[423813160,1780432232000,-500.0,0.00012042,2]
[423813152,1780432232000,-500.0,0.00012042,2]
[423813165,1780432232000,-326.54910118,0.00012043,2]
[423813148,1780432232000,-204.55110837,0.00012042,2]
[423813149,1780432232000,-500.0,0.00012042,2]
[423813158,1780432232000,-243.38144739,0.00012042,2]
[423813157,1780432232000,-500.0,0.00012042,2]
[423813147,1780432232000,-500.0,0.00012042,2]
[423813155,1780432232000,-177.87932221,0.00012042,2]
[423813151,1780432232000,-500.0,0.00012042,2]
[423813150,1780432232000,-500.0,0.00012042,2]
[423813172,1780432232000,-1050.0,0.00012043,2]
[423813156,1780432232000,-500.0,0.00012042,2]
[423813153,1780432232000,-500.0,0.00012042,2]
[423813154,1780432232000,-322.12067779,0.00012042,2]
[423813183,1780432233000,-1050.0,0.00012043,2]
[423813185,1780432233000,-1050.0,0.00012043,2]
[423813184,1780432233000,-1050.0,0.00012043,2]
[423813187,1780432233000,-1050.0,0.00012043,2]
[423813186,1780432233000,-1050.0,0.00012043,2]
[423813188,1780432233000,-1066.35713712,0.00012043,2]
[423813182,1780432233000,-1050.0,0.00012043,2]
[423813175,1780432233000,-1050.0,0.00012043,2]
[423813180,1780432233000,-1050.0,0.00012043,2]
[423813178,1780432233000,-1050.0,0.00012043,2]
[423813179,1780432233000,-1050.0,0.00012043,2]
[423813176,1780432233000,-1050.0,0.00012043,2]
[423813177,1780432233000,-1050.0,0.00012043,2]
[423813174,1780432233000,-1050.0,0.00012043,2]
[423813190,1780432233000,-500.0,0.00012043,2]
[423813181,1780432233000,-1050.0,0.00012043,2]
[423813191,1780432233000,-500.0,0.00012043,2]
[423813189,1780432233000,-153.28562773,0.00012043,2]
[423813192,1780432233000,-500.0,0.00012043,2]
[423813208,1780432233000,-1349.64553418,0.00012218,2]
[423813207,1780432233000,-98276.12457579,0.00012218,2]
[423813206,1780432233000,-511.23837924,0.00012216,2]
[423813203,1780432233000,-507.81231379,0.00012043,2]
[423813202,1780432233000,-500.0,0.00012043,2]
[423813197,1780432233000,-500.0,0.00012043,2]
[423813204,1780432233000,-500.0,0.00012043,2]
[423813205,1780432233000,-521.00556713,0.00012215,2]
[423813199,1780432233000,-216.73476898,0.00012043,2]
[423813201,1780432233000,-500.0,0.00012043,2]
[423813200,1780432233000,-500.0,0.00012043,2]
[423813198,1780432233000,-608.31339903,0.00012043,2]
[423813196,1780432233000,-151.5,0.00012043,2]
[423813194,1780432233000,-608.19673606,0.00012043,2]
[423813195,1780432233000,-151.5,0.00012043,2]
[423813193,1780432233000,-500.0,0.00012043,2]
[423813241,1780432241000,-625.54757876,0.00012042,2]
[423813252,1780432241000,-500.0,0.00012042,2]
[423813244,1780432241000,-500.0,0.00012042,2]
[423813254,1780432241000,-500.0,0.00012042,2]
[423813247,1780432241000,-500.0,0.00012042,2]
[423813248,1780432241000,-500.0,0.00012042,2]
[423813246,1780432241000,-500.0,0.00012042,2]
[423813250,1780432241000,-500.0,0.00012042,2]
[423813249,1780432241000,-500.0,0.00012042,2]
[423813251,1780432241000,-500.0,0.00012042,2]
[423813243,1780432241000,-500.0,0.00012042,2]
[423813245,1780432241000,-500.0,0.00012042,2]
[423813242,1780432241000,-500.0,0.00012042,2]
[423813233,1780432241000,-500.0,0.00012042,2]
[423813240,1780432241000,-500.0,0.00012042,2]
[423813239,1780432241000,-500.0,0.00012042,2]
[423813235,1780432241000,-307.38232055,0.00012042,2]
[423813237,1780432241000,-192.61767945,0.00012042,2]
[423813238,1780432241000,-500.0,0.00012042,2]
[423813234,1780432241000,-500.0,0.00012042,2]
[423813259,1780432241000,-500.0,0.00012042,2]
[423813230,1780432241000,-500.0,0.00012042,2]
[423813228,1780432241000,-500.0,0.00012042,2]
[423813232,1780432241000,-500.0,0.00012042,2]
[423813231,1780432241000,-500.0,0.00012042,2]
[423813229,1780432241000,-500.0,0.00012042,2]
[423813253,1780432241000,-500.0,0.00012042,2]
[423813255,1780432241000,-500.0,0.00012042,2]
[423813258,1780432241000,-500.0,0.00012042,2]
[423813279,1780432241000,-912.385138,0.00013002,2]
[423813288,1780432241000,-500.0,0.00013698,2]
[423813285,1780432241000,-500.0,0.00013698,2]
[423813287,1780432241000,-500.0,0.00013698,2]
[423813284,1780432241000,-500.0,0.00013698,2]
[423813286,1780432241000,-485.83997625,0.00013698,2]
[423813283,1780432241000,-500.0,0.00013698,2]
[423813282,1780432241000,-500.0,0.00013698,2]
[423813257,1780432241000,-500.0,0.00012042,2]
[423813278,1780432241000,-151.06,0.00013,2]
[423813276,1780432241000,-1680.0,0.00012682,2]
[423813273,1780432241000,-500.0,0.00012591,2]
[423813277,1780432241000,-500.0,0.00012865,2]
[423813275,1780432241000,-420.0,0.00012663,2]
[423813271,1780432241000,-511.23837921,0.00012397,2]
[423813272,1780432241000,-912.385138,0.00012497,2]
[423813260,1780432241000,-500.0,0.00012042,2]
[423813265,1780432241000,-511.23837921,0.00012307,2]
[423813266,1780432241000,-500.0,0.00012317,2]
[423813256,1780432241000,-500.0,0.00012042,2]
[423813274,1780432241000,-420.0,0.00012663,2]
[423813263,1780432241000,-36807.03305939,0.00012218,2]
[423813269,1780432241000,-157.46656873,0.00012318,2]
[423813262,1780432241000,-500.0,0.00012042,2]
[423813267,1780432241000,-151.5,0.00012318,2]
[423813268,1780432241000,-151.5,0.00012318,2]
[423813270,1780432241000,-511.23837921,0.00012352,2]
[423813280,1780432241000,-912.385138,0.00013507,2]
[423813264,1780432241000,-511.23837921,0.00012261,2]
[423813331,1780432242000,-500.0,0.00013698,2]
[423813330,1780432242000,-500.0,0.00013698,2]
[423813336,1780432242000,-594.44,0.00013698,2]
[423813329,1780432242000,-500.0,0.00013698,2]
[423813332,1780432242000,-500.0,0.00013698,2]
[423813346,1780432242000,-500.0,0.00013698,2]
[423813323,1780432242000,-500.0,0.00013698,2]
[423813327,1780432242000,-500.0,0.00013698,2]
[423813326,1780432242000,-500.0,0.00013698,2]
[423813325,1780432242000,-500.0,0.00013698,2]
[423813322,1780432242000,-500.0,0.00013698,2]
[423813335,1780432242000,-500.0,0.00013698,2]
[423813324,1780432242000,-500.0,0.00013698,2]
[423813334,1780432242000,-500.0,0.00013698,2]
[423813353,1780432242000,-500.0,0.00013698,2]
[423813337,1780432242000,-500.0,0.00013698,2]
[423813338,1780432242000,-500.0,0.00013698,2]
[423813340,1780432242000,-500.0,0.00013698,2]
[423813339,1780432242000,-500.0,0.00013698,2]
[423813341,1780432242000,-500.0,0.00013698,2]
[423813344,1780432242000,-500.0,0.00013698,2]
[423813343,1780432242000,-500.0,0.00013698,2]
[423813351,1780432242000,-500.0,0.00013698,2]
[423813348,1780432242000,-190.12949262,0.00013698,2]
[423813345,1780432242000,-500.0,0.00013698,2]
[423813347,1780432242000,-500.0,0.00013698,2]
[423813342,1780432242000,-500.0,0.00013698,2]
[423813319,1780432242000,-500.0,0.00013698,2]
[423813333,1780432242000,-500.0,0.00013698,2]
[423813320,1780432242000,-500.0,0.00013698,2]
[423813305,1780432242000,-500.0,0.00013698,2]
[423813317,1780432242000,-500.43037653,0.00013698,2]
[423813289,1780432242000,-500.0,0.00013698,2]
[423813292,1780432242000,-500.0,0.00013698,2]
[423813290,1780432242000,-500.0,0.00013698,2]
[423813291,1780432242000,-500.0,0.00013698,2]
[423813294,1780432242000,-500.0,0.00013698,2]
[423813304,1780432242000,-500.0,0.00013698,2]
[423813295,1780432242000,-500.0,0.00013698,2]
[423813297,1780432242000,-500.0,0.00013698,2]
[423813298,1780432242000,-500.0,0.00013698,2]
[423813299,1780432242000,-500.0,0.00013698,2]
[423813296,1780432242000,-474.90946909,0.00013698,2]
[423813303,1780432242000,-500.0,0.00013698,2]
[423813293,1780432242000,-500.0,0.00013698,2]
[423813328,1780432242000,-340.78338378,0.00013698,2]
[423813301,1780432242000,-500.0,0.00013698,2]
[423813302,1780432242000,-500.0,0.00013698,2]
[423813308,1780432242000,-500.0,0.00013698,2]
[423813307,1780432242000,-500.0,0.00013698,2]
[423813311,1780432242000,-500.0,0.00013698,2]
[423813310,1780432242000,-500.0,0.00013698,2]
[423813313,1780432242000,-500.0,0.00013698,2]
[423813315,1780432242000,-500.0,0.00013698,2]
[423813316,1780432242000,-500.0,0.00013698,2]
[423813314,1780432242000,-500.0,0.00013698,2]
[423813309,1780432242000,-500.0,0.00013698,2]
[423813312,1780432242000,-500.0,0.00013698,2]
[423813306,1780432242000,-500.0,0.00013698,2]
[423813318,1780432242000,-500.0,0.00013698,2]
[423813300,1780432242000,-293.41185799,0.00013698,2]
[423813352,1780432242000,-503.86000507,0.00013698,2]
[423813321,1780432242000,-500.0,0.00013698,2]
[423813349,1780432242000,-500.0,0.00013698,2]
[423813384,1780432242000,-500.0,0.00013698,2]
[423813389,1780432242000,-500.0,0.00013698,2]
[423813386,1780432242000,-500.0,0.00013698,2]
[423813388,1780432242000,-364.36224229,0.00013698,2]
[423813390,1780432242000,-500.0,0.00013698,2]
[423813392,1780432242000,-500.0,0.00013698,2]
[423813391,1780432242000,-500.0,0.00013698,2]
[423813393,1780432242000,-500.0,0.00013698,2]
[423813394,1780432242000,-500.0,0.00013698,2]
[423813395,1780432242000,-500.0,0.00013698,2]
[423813396,1780432242000,-300.55977937,0.00013698,2]
[423813397,1780432242000,-500.0,0.00013698,2]
[423813404,1780432242000,-440.54017475,0.00013698,2]
[423813399,1780432242000,-500.0,0.00013698,2]
[423813403,1780432242000,-500.0,0.00013698,2]
[423813401,1780432242000,-500.0,0.00013698,2]
[423813407,1780432242000,-500.0,0.00013698,2]
[423813408,1780432242000,-587.97132463,0.00013698,2]
[423813402,1780432242000,-500.0,0.00013698,2]
[423813398,1780432242000,-500.0,0.00013698,2]
[423813400,1780432242000,-271.54851605,0.00013698,2]
[423813406,1780432242000,-500.0,0.00013698,2]
[423813405,1780432242000,-500.0,0.00013698,2]
[423813410,1780432242000,-500.0,0.00013698,2]
[423813409,1780432242000,-718.67,0.00013698,2]
[423813411,1780432242000,-500.0,0.00013698,2]
[423813413,1780432242000,-500.0,0.00013698,2]
[423813412,1780432242000,-500.0,0.00013698,2]
[423813350,1780432242000,-500.0,0.00013698,2]
[423813387,1780432242000,-500.0,0.00013698,2]
[423813383,1780432242000,-655.72,0.00013698,2]
[423813415,1780432242000,-500.0,0.00013698,2]
[423813414,1780432242000,-500.0,0.00013698,2]
[423813382,1780432242000,-522.81183892,0.00013698,2]
[423813367,1780432242000,-500.0,0.00013698,2]
[423813366,1780432242000,-500.0,0.00013698,2]
[423813356,1780432242000,-500.0,0.00013698,2]
[423813354,1780432242000,-500.0,0.00013698,2]
[423813365,1780432242000,-500.0,0.00013698,2]
[423813357,1780432242000,-501.43716303,0.00013698,2]
[423813362,1780432242000,-559.71854376,0.00013698,2]
[423813359,1780432242000,-500.0,0.00013698,2]
[423813360,1780432242000,-500.0,0.00013698,2]
[423813363,1780432242000,-500.0,0.00013698,2]
[423813361,1780432242000,-500.0,0.00013698,2]
[423813364,1780432242000,-500.0,0.00013698,2]
[423813358,1780432242000,-500.0,0.00013698,2]
[423813355,1780432242000,-500.0,0.00013698,2]
[423813381,1780432242000,-503.95502753,0.00013698,2]
[423813385,1780432242000,-500.0,0.00013698,2]
[423813374,1780432242000,-504.21045481,0.00013698,2]
[423813376,1780432242000,-200.43740135,0.00013698,2]
[423813378,1780432242000,-432.51601163,0.00013698,2]
[423813369,1780432242000,-500.0,0.00013698,2]
[423813377,1780432242000,-500.0,0.00013698,2]
[423813375,1780432242000,-504.76342222,0.00013698,2]
[423813370,1780432242000,-500.0,0.00013698,2]
[423813373,1780432242000,-500.0,0.00013698,2]
[423813372,1780432242000,-600.01,0.00013698,2]
[423813368,1780432242000,-500.0,0.00013698,2]
[423813380,1780432242000,-500.0,0.00013698,2]
[423813379,1780432242000,-500.0,0.00013698,2]
[423813371,1780432242000,-484.20536598,0.00013698,2]
[423813457,1780432243000,-198.08732654,0.00013698,2]
[423813459,1780432243000,-500.0,0.00013698,2]
[423813460,1780432243000,-500.48421303,0.00013698,2]
[423813462,1780432243000,-500.0,0.00013698,2]
[423813463,1780432243000,-500.0,0.00013698,2]
[423813451,1780432243000,-500.0,0.00013698,2]
[423813458,1780432243000,-500.0,0.00013698,2]
[423813453,1780432243000,-500.0,0.00013698,2]
[423813450,1780432243000,-500.0,0.00013698,2]
[423813461,1780432243000,-500.0,0.00013698,2]
[423813452,1780432243000,-500.0,0.00013698,2]
[423813454,1780432243000,-247.96550589,0.00013698,2]
[423813455,1780432243000,-500.0,0.00013698,2]
[423813470,1780432243000,-500.0,0.00013698,2]
[423813464,1780432243000,-500.0,0.00013698,2]
[423813465,1780432243000,-500.0,0.00013698,2]
[423813466,1780432243000,-500.0,0.00013698,2]
[423813467,1780432243000,-500.0,0.00013698,2]
[423813476,1780432243000,-500.0,0.00013698,2]
[423813469,1780432243000,-500.0,0.00013698,2]
[423813472,1780432243000,-2190.38,0.00013698,2]
[423813474,1780432243000,-1192.78,0.00013698,2]
[423813471,1780432243000,-563.67,0.00013698,2]
[423813468,1780432243000,-500.0,0.00013698,2]
[423813473,1780432243000,-500.0,0.00013698,2]
[423813475,1780432243000,-500.0,0.00013698,2]
[423813449,1780432243000,-500.0,0.00013698,2]
[423813456,1780432243000,-500.0,0.00013698,2]
[423813448,1780432243000,-500.0,0.00013698,2]
[423813427,1780432243000,-500.0,0.00013698,2]
[423813440,1780432243000,-500.0,0.00013698,2]
[423813478,1780432243000,-500.0,0.00013698,2]
[423813417,1780432243000,-500.0,0.00013698,2]
[423813420,1780432243000,-500.0,0.00013698,2]
[423813416,1780432243000,-500.0,0.00013698,2]
[423813419,1780432243000,-500.0,0.00013698,2]
[423813421,1780432243000,-500.0,0.00013698,2]
[423813418,1780432243000,-500.0,0.00013698,2]
[423813422,1780432243000,-500.0,0.00013698,2]
[423813424,1780432243000,-500.0,0.00013698,2]
[423813423,1780432243000,-500.0,0.00013698,2]
[423813426,1780432243000,-500.0,0.00013698,2]
[423813431,1780432243000,-500.0,0.00013698,2]
[423813430,1780432243000,-500.0,0.00013698,2]
[423813446,1780432243000,-500.0,0.00013698,2]
[423813432,1780432243000,-500.0,0.00013698,2]
[423813429,1780432243000,-500.0,0.00013698,2]
[423813428,1780432243000,-500.0,0.00013698,2]
[423813433,1780432243000,-500.0,0.00013698,2]
[423813439,1780432243000,-500.0,0.00013698,2]
[423813435,1780432243000,-500.0,0.00013698,2]
[423813436,1780432243000,-500.0,0.00013698,2]
[423813444,1780432243000,-500.0,0.00013698,2]
[423813437,1780432243000,-500.0,0.00013698,2]
[423813438,1780432243000,-500.0,0.00013698,2]
[423813442,1780432243000,-500.0,0.00013698,2]
[423813443,1780432243000,-500.0,0.00013698,2]
[423813434,1780432243000,-500.0,0.00013698,2]
[423813441,1780432243000,-500.0,0.00013698,2]
[423813425,1780432243000,-500.0,0.00013698,2]
[423813477,1780432243000,-500.75612095,0.00013698,2]
[423813484,1780432243000,-500.0,0.00013698,2]
[423813487,1780432243000,-500.0,0.00013698,2]
[423813540,1780432243000,-535.62,0.00013698,2]
[423813542,1780432243000,-500.0,0.00013698,2]
[423813543,1780432243000,-500.0,0.00013698,2]
[423813534,1780432243000,-235.59086923,0.00013698,2]
[423813538,1780432243000,-500.0,0.00013698,2]
[423813544,1780432243000,-500.46082791,0.00013698,2]
[423813545,1780432243000,-500.0,0.00013698,2]
[423813536,1780432243000,-500.0,0.00013698,2]
[423813547,1780432243000,-500.0,0.00013698,2]
[423813557,1780432243000,-500.0,0.00013698,2]
[423813546,1780432243000,-500.0,0.00013698,2]
[423813549,1780432243000,-500.0,0.00013698,2]
[423813559,1780432243000,-17024.16,0.00013698,2]
[423813558,1780432243000,-500.0,0.00013698,2]
[423813548,1780432243000,-500.0,0.00013698,2]
[423813550,1780432243000,-1715.03,0.00013698,2]
[423813551,1780432243000,-500.57254455,0.00013698,2]
[423813552,1780432243000,-500.0,0.00013698,2]
[423813555,1780432243000,-500.0,0.00013698,2]
[423813554,1780432243000,-500.0,0.00013698,2]
[423813553,1780432243000,-500.0,0.00013698,2]
[423813567,1780432243000,-151.06,0.000139,2]
[423813561,1780432243000,-1808.93,0.00013698,2]
[423813560,1780432243000,-3006.21,0.00013698,2]
[423813564,1780432243000,-1000.0,0.00013699,2]
[423813563,1780432243000,-500.0,0.00013698,2]
[423813480,1780432243000,-500.0,0.00013698,2]
[423813526,1780432243000,-500.0,0.00013698,2]
[423813528,1780432243000,-500.0,0.00013698,2]
[423813565,1780432243000,-622.194147,0.00013699,2]
[423813522,1780432243000,-1969.10922611,0.00013698,2]
[423813517,1780432243000,-280.62077389,0.00013698,2]
[423813481,1780432243000,-924.46,0.00013698,2]
[423813489,1780432243000,-972.83,0.00013698,2]
[423813479,1780432243000,-500.0,0.00013698,2]
[423813488,1780432243000,-558.4,0.00013698,2]
[423813482,1780432243000,-235.39220402,0.00013698,2]
[423813486,1780432243000,-500.52332908,0.00013698,2]
[423813485,1780432243000,-500.0,0.00013698,2]
[423813490,1780432243000,-1608.51,0.00013698,2]
[423813492,1780432243000,-500.0,0.00013698,2]
[423813491,1780432243000,-500.0,0.00013698,2]
[423813500,1780432243000,-731.28,0.00013698,2]
[423813493,1780432243000,-500.0,0.00013698,2]
[423813501,1780432243000,-500.0,0.00013698,2]
[423813483,1780432243000,-880.88,0.00013698,2]
[423813495,1780432243000,-902.57,0.00013698,2]
[423813516,1780432243000,-500.0,0.00013698,2]
[423813524,1780432243000,-1026.36,0.00013698,2]
[423813508,1780432243000,-1695.8,0.00013698,2]
[423813514,1780432243000,-500.0,0.00013698,2]
[423813494,1780432243000,-500.0,0.00013698,2]
[423813512,1780432243000,-500.0,0.00013698,2]
[423813515,1780432243000,-500.0,0.00013698,2]
[423813513,1780432243000,-1871.5,0.00013698,2]
[423813496,1780432243000,-500.0,0.00013698,2]
[423813498,1780432243000,-500.0,0.00013698,2]
[423813507,1780432243000,-824.49,0.00013698,2]
[423813506,1780432243000,-500.30987034,0.00013698,2]
[423813510,1780432243000,-500.0,0.00013698,2]
[423813630,1780432244000,-500.0,0.00013972,2]
[423813628,1780432244000,-500.0,0.00013972,2]
[423813627,1780432244000,-500.0,0.00013972,2]
[423813626,1780432244000,-500.0,0.00013972,2]
[423813621,1780432244000,-500.0,0.00013972,2]
[423813635,1780432244000,-500.0,0.00013972,2]
[423813624,1780432244000,-500.0,0.00013972,2]
[423813625,1780432244000,-500.0,0.00013972,2]
[423813622,1780432244000,-500.0,0.00013972,2]
[423813619,1780432244000,-500.0,0.00013972,2]
[423813629,1780432244000,-500.0,0.00013972,2]
[423813634,1780432244000,-500.0,0.00013972,2]